[Event "Titled Tuesday Blitz July 25 Early 2023"]
[White "Sarana, Alexey"]
[Black "Hovhannisyan, Robert"]
[WhiteFideId "24133795"]
[BlackFideId "13302507"]
[WhiteElo "3063"]
[BlackElo "2947"]
[Result "0-1"]
[Round "5"]
[TimeControl "180+2"]
[Date "2023.07.25"]
[WhiteClock "0:00:02"]
[BlackClock "0:00:06"]
[Board "2"]

1. c4 {[%clk 0:03:00]}  e5 {[%clk 0:02:59]} 2. Nc3 {[%clk 0:03:00]}  Bb4 {[%clk 0:02:59]} 3. Nd5 {[%clk 0:03:00]}  Be7 {[%clk 0:02:58]} 4. d4 {[%clk 0:02:57]}  exd4 {[%clk 0:02:58]} 5. Qxd4 {[%clk 0:02:58]}  Nf6 {[%clk 0:02:59]} 6. Nxe7 {[%clk 0:02:55]}  Qxe7 {[%clk 0:03:00]} 7. Bg5 {[%clk 0:02:47]}  Nc6 {[%clk 0:02:59]} 8. Qc3 {[%clk 0:02:47]}  d6 {[%clk 0:03:00]} 9. f3 {[%clk 0:02:45]}  Rg8 {[%clk 0:02:23]} 10. O-O-O {[%clk 0:02:24]}  Ne4 {[%clk 0:02:15]} 11. Bxe7 {[%clk 0:02:17]}  Nxc3 {[%clk 0:02:15]} 12. bxc3 {[%clk 0:02:18]}  Kxe7 {[%clk 0:02:15]} 13. e3 {[%clk 0:02:08]}  Be6 {[%clk 0:02:15]} 14. h4 {[%clk 0:01:59]}  h5 {[%clk 0:01:55]} 15. Nh3 {[%clk 0:01:53]}  Bxh3 {[%clk 0:01:45]} 16. Rxh3 {[%clk 0:01:54]}  Rae8 {[%clk 0:01:40]} 17. Rg3 {[%clk 0:01:53]}  Kf6 {[%clk 0:01:37]} 18. e4 {[%clk 0:01:53]}  Re5 {[%clk 0:01:35]} 19. Rd5 {[%clk 0:01:52]}  Ne7 {[%clk 0:01:30]} 20. Rd2 {[%clk 0:01:44]}  Ng6 {[%clk 0:01:24]} 21. Rh3 {[%clk 0:01:45]}  Rc5 {[%clk 0:01:20]} 22. Kc2 {[%clk 0:01:44]}  Ne5 {[%clk 0:01:10]} 23. Kb3 {[%clk 0:01:44]}  g6 {[%clk 0:01:11]} 24. Rd5 {[%clk 0:01:40]}  Ke7 {[%clk 0:01:02]} 25. Rxc5 {[%clk 0:01:28]}  dxc5 {[%clk 0:01:03]} 26. f4 {[%clk 0:01:29]}  Ng4 {[%clk 0:01:02]} 27. Be2 {[%clk 0:01:27]}  f5 {[%clk 0:00:38]} 28. Bxg4 {[%clk 0:01:17]}  hxg4 {[%clk 0:00:34]} 29. Re3 {[%clk 0:01:17]}  Kf6 {[%clk 0:00:31]} 30. exf5 {[%clk 0:01:06]}  gxf5 {[%clk 0:00:30]} 31. g3 {[%clk 0:01:05]}  Rd8 {[%clk 0:00:29]} 32. Kc2 {[%clk 0:01:05]}  Rd7 {[%clk 0:00:25]} 33. Re8 {[%clk 0:01:04]}  Re7 {[%clk 0:00:14]} 34. Rf8+ {[%clk 0:00:47]}  Rf7 {[%clk 0:00:14]} 35. Ra8 {[%clk 0:00:45]}  a6 {[%clk 0:00:12]} 36. Rb8 {[%clk 0:00:41]}  b6 {[%clk 0:00:11]} 37. Ra8 {[%clk 0:00:41]}  a5 {[%clk 0:00:10]} 38. Kb3 {[%clk 0:00:19]}  Re7 {[%clk 0:00:10]} 39. Rc8 {[%clk 0:00:17]}  Re3 {[%clk 0:00:09]} 40. Rxc7 {[%clk 0:00:18]}  Rxg3 {[%clk 0:00:09]} 41. Rc6+ {[%clk 0:00:18]}  Kg7 {[%clk 0:00:10]} 42. h5 {[%clk 0:00:16]}  Rh3 {[%clk 0:00:10]} 43. Rg6+ {[%clk 0:00:17]}  Kf7 {[%clk 0:00:10]} 44. Rg5 {[%clk 0:00:18]}  Kf6 {[%clk 0:00:09]} 45. Rg6+ {[%clk 0:00:18]}  Kf7 {[%clk 0:00:09]} 46. Rg5 {[%clk 0:00:18]}  Kf6 {[%clk 0:00:08]} 47. Ka4 {[%clk 0:00:10]}  Rf3 {[%clk 0:00:08]} 48. h6 {[%clk 0:00:09]}  Rh3 {[%clk 0:00:07]} 49. Kb5 {[%clk 0:00:09]}  Rxh6 {[%clk 0:00:07]} 50. Kxb6 {[%clk 0:00:10]}  Rg6 {[%clk 0:00:07]} 51. Rh5 {[%clk 0:00:10]}  g3 {[%clk 0:00:07]} 52. Rh1 {[%clk 0:00:11]}  Rg4 {[%clk 0:00:06]} 53. Rg1 {[%clk 0:00:11]}  Kg6 {[%clk 0:00:05]} 54. Kxc5 {[%clk 0:00:12]}  Kh5 {[%clk 0:00:06]} 55. Kd5 {[%clk 0:00:12]}  Rg8 {[%clk 0:00:06]} 56. c5 {[%clk 0:00:11]}  Kg4 {[%clk 0:00:06]} 57. c6 {[%clk 0:00:11]}  Kxf4 {[%clk 0:00:06]} 58. c7 {[%clk 0:00:11]}  Kg4 {[%clk 0:00:06]} 59. Rb1 {[%clk 0:00:07]}  Rc8 {[%clk 0:00:05]} 60. Kd6 {[%clk 0:00:07]}  f4 {[%clk 0:00:05]} 61. Kd7 {[%clk 0:00:02]}  Rxc7+ {[%clk 0:00:05]} 62. Kxc7 {[%clk 0:00:03]}  f3 {[%clk 0:00:06]} 63. c4 {[%clk 0:00:04]}  f2 {[%clk 0:00:07]} 64. Rf1 {[%clk 0:00:04]}  Kf3 {[%clk 0:00:07]} 65. c5 {[%clk 0:00:04]}  g2 {[%clk 0:00:07]} 66. Rc1 {[%clk 0:00:02]}  f1=Q {[%clk 0:00:07]} 67. Rc3+ {[%clk 0:00:02]}  Kg4 {[%clk 0:00:07]} 68. c6 {[%clk 0:00:03]}  g1=Q {[%clk 0:00:06]} 69. Kb7 {[%clk 0:00:04]}  Qb1+ {[%clk 0:00:06]} 70. Rb3 {[%clk 0:00:04]}  Qxb3+ {[%clk 0:00:05]} 71. axb3 {[%clk 0:00:04]}  Qb1 {[%clk 0:00:06]} 72. c7 {[%clk 0:00:05]}  Qxb3+ {[%clk 0:00:06]} 73. Ka6 {[%clk 0:00:04]}  Qc4+ {[%clk 0:00:06]} 74. Kb6 {[%clk 0:00:02]}  a4 {[%clk 0:00:06]} 0-1


[Site "https://www.chess.com"]

[Event "Titled Tuesday Blitz July 25 Early 2023"]
[White "Galchenko, Matvey"]
[Black "Pranav, V"]
[WhiteFideId "24175480"]
[BlackFideId "25060783"]
[WhiteElo "2906"]
[BlackElo "3013"]
[Result "1-0"]
[Round "5"]
[TimeControl "180+2"]
[Date "2023.07.25"]
[WhiteClock "0:00:45"]
[BlackClock "0:00:19"]
[Board "5"]

1. f4 {[%clk 0:03:00]}  d5 {[%clk 0:02:58]} 2. Nf3 {[%clk 0:03:00]}  Nh6 {[%clk 0:02:55]} 3. g3 {[%clk 0:03:01]}  g6 {[%clk 0:02:48]} 4. Bg2 {[%clk 0:03:02]}  Bg7 {[%clk 0:02:48]} 5. O-O {[%clk 0:03:01]}  O-O {[%clk 0:02:49]} 6. d3 {[%clk 0:03:02]}  c5 {[%clk 0:02:46]} 7. Nc3 {[%clk 0:03:02]}  Nc6 {[%clk 0:02:41]} 8. e4 {[%clk 0:03:02]}  dxe4 {[%clk 0:02:42]} 9. dxe4 {[%clk 0:03:03]}  Nd4 {[%clk 0:02:37]} 10. h3 {[%clk 0:03:01]}  Kh8 {[%clk 0:02:26]} 11. Be3 {[%clk 0:02:59]}  Be6 {[%clk 0:02:22]} 12. e5 {[%clk 0:02:51]}  Nhf5 {[%clk 0:02:07]} 13. Bf2 {[%clk 0:02:51]}  Nxf3+ {[%clk 0:02:07]} 14. Qxf3 {[%clk 0:02:50]}  Qa5 {[%clk 0:01:49]} 15. Rad1 {[%clk 0:02:43]}  Rab8 {[%clk 0:01:40]} 16. g4 {[%clk 0:02:42]}  Nd4 {[%clk 0:01:39]} 17. Bxd4 {[%clk 0:02:43]}  cxd4 {[%clk 0:01:40]} 18. Rxd4 {[%clk 0:02:36]}  Qb6 {[%clk 0:01:38]} 19. Qe3 {[%clk 0:02:36]}  f6 {[%clk 0:01:31]} 20. Na4 {[%clk 0:02:31]}  Qa5 {[%clk 0:01:30]} 21. exf6 {[%clk 0:02:24]}  Bxf6 {[%clk 0:01:31]} 22. Re4 {[%clk 0:02:06]}  Bd5 {[%clk 0:01:09]} 23. Re5 {[%clk 0:02:06]}  Qxa4 {[%clk 0:01:09]} 24. Rxd5 {[%clk 0:02:06]}  Qxa2 {[%clk 0:01:10]} 25. g5 {[%clk 0:01:59]}  Bg7 {[%clk 0:01:10]} 26. Qxe7 {[%clk 0:01:22]}  Qxb2 {[%clk 0:01:08]} 27. f5 {[%clk 0:01:15]}  Rbe8 {[%clk 0:00:38]} 28. Qd7 {[%clk 0:01:06]}  Qb6+ {[%clk 0:00:38]} 29. Kh1 {[%clk 0:01:03]}  Rd8 {[%clk 0:00:30]} 30. Qe7 {[%clk 0:00:53]}  Rxd5 {[%clk 0:00:26]} 31. f6 {[%clk 0:00:46]}  Rg8 {[%clk 0:00:17]} 32. fxg7+ {[%clk 0:00:43]}  Rxg7 {[%clk 0:00:18]} 33. Rf8+ {[%clk 0:00:43]}  Rg8 {[%clk 0:00:17]} 34. Rxg8+ {[%clk 0:00:44]}  Kxg8 {[%clk 0:00:18]} 35. Bxd5+ {[%clk 0:00:45]}  Kh8 {[%clk 0:00:19]} 36. Qf8# {[%clk 0:00:45]} 1-0


[Site "https://www.chess.com"]

[Event "Titled Tuesday Blitz July 25 Early 2023"]
[White "Iturrizaga Bonelli, Eduardo"]
[Black "Movahed, Sina"]
[WhiteFideId "3901211"]
[BlackFideId "42520835"]
[WhiteElo "2898"]
[BlackElo "2984"]
[Result "1-0"]
[Round "5"]
[TimeControl "180+2"]
[Date "2023.07.25"]
[WhiteClock "0:00:10"]
[BlackClock "0:00:06"]
[Board "6"]

1. c4 {[%clk 0:03:00]}  Nf6 {[%clk 0:03:00]} 2. g3 {[%clk 0:03:01]}  g6 {[%clk 0:03:00]} 3. Bg2 {[%clk 0:03:01]}  Bg7 {[%clk 0:03:01]} 4. Nc3 {[%clk 0:03:02]}  O-O {[%clk 0:03:01]} 5. d4 {[%clk 0:03:02]}  d6 {[%clk 0:03:02]} 6. Nf3 {[%clk 0:03:02]}  Nbd7 {[%clk 0:03:02]} 7. O-O {[%clk 0:03:02]}  e5 {[%clk 0:03:03]} 8. e4 {[%clk 0:03:02]}  exd4 {[%clk 0:03:03]} 9. Nxd4 {[%clk 0:03:03]}  Re8 {[%clk 0:03:04]} 10. Qc2 {[%clk 0:03:02]}  Ne5 {[%clk 0:02:43]} 11. b3 {[%clk 0:02:58]}  c6 {[%clk 0:02:41]} 12. h3 {[%clk 0:02:47]}  h5 {[%clk 0:02:39]} 13. Bg5 {[%clk 0:02:31]}  Qc7 {[%clk 0:02:26]} 14. Rad1 {[%clk 0:02:29]}  Nh7 {[%clk 0:02:19]} 15. Be3 {[%clk 0:02:24]}  a5 {[%clk 0:02:18]} 16. f4 {[%clk 0:02:06]}  Nd7 {[%clk 0:02:17]} 17. Ndb5 {[%clk 0:01:58]}  cxb5 {[%clk 0:02:15]} 18. Nxb5 {[%clk 0:01:59]}  Qb8 {[%clk 0:01:49]} 19. Nxd6 {[%clk 0:01:59]}  Rf8 {[%clk 0:01:48]} 20. e5 {[%clk 0:01:57]}  Ra6 {[%clk 0:01:43]} 21. c5 {[%clk 0:01:53]}  Qc7 {[%clk 0:01:36]} 22. Bd5 {[%clk 0:01:52]}  Ndf6 {[%clk 0:01:31]} 23. exf6 {[%clk 0:01:41]}  Nxf6 {[%clk 0:01:30]} 24. Bg2 {[%clk 0:01:41]}  Bd7 {[%clk 0:01:05]} 25. f5 {[%clk 0:01:34]}  Bxf5 {[%clk 0:00:53]} 26. Nxf5 {[%clk 0:01:29]}  gxf5 {[%clk 0:00:52]} 27. Bf4 {[%clk 0:01:15]}  Qc8 {[%clk 0:00:51]} 28. Bd6 {[%clk 0:01:15]}  Ne4 {[%clk 0:00:41]} 29. Bxe4 {[%clk 0:01:05]}  fxe4 {[%clk 0:00:41]} 30. Bxf8 {[%clk 0:01:05]}  Bxf8 {[%clk 0:00:41]} 31. Kg2 {[%clk 0:00:47]}  Re6 {[%clk 0:00:38]} 32. Rf5 {[%clk 0:00:39]}  e3 {[%clk 0:00:34]} 33. Rg5+ {[%clk 0:00:36]}  Bg7 {[%clk 0:00:33]} 34. Qe2 {[%clk 0:00:26]}  Qc6+ {[%clk 0:00:30]} 35. Kh2 {[%clk 0:00:24]}  Qe4 {[%clk 0:00:15]} 36. Rd8+ {[%clk 0:00:23]}  Kh7 {[%clk 0:00:13]} 37. Rxh5+ {[%clk 0:00:15]}  Bh6 {[%clk 0:00:12]} 38. Rd6 {[%clk 0:00:11]}  Rxd6 {[%clk 0:00:12]} 39. cxd6 {[%clk 0:00:11]}  Qd4 {[%clk 0:00:12]} 40. d7 {[%clk 0:00:10]}  Kg7 {[%clk 0:00:12]} 41. Qg4+ {[%clk 0:00:08]}  Qxg4 {[%clk 0:00:08]} 42. hxg4 {[%clk 0:00:09]}  e2 {[%clk 0:00:06]} 43. Re5 {[%clk 0:00:10]} 1-0


[Site "https://www.chess.com"]

[Event "Titled Tuesday Blitz July 25 Early 2023"]
[White "Bernadskiy, Vitaliy"]
[Black "Bok, Benjamin"]
[WhiteFideId "14100371"]
[BlackFideId "1017063"]
[WhiteElo "2895"]
[BlackElo "2970"]
[Result "0-1"]
[Round "5"]
[TimeControl "180+2"]
[Date "2023.07.25"]
[WhiteClock "0:00:14"]
[BlackClock "0:00:15"]
[Board "7"]

1. d4 {[%clk 0:03:00]}  Nf6 {[%clk 0:02:59]} 2. Bg5 {[%clk 0:02:59]}  d5 {[%clk 0:02:59]} 3. Nd2 {[%clk 0:02:59]}  Bf5 {[%clk 0:02:56]} 4. Ngf3 {[%clk 0:02:57]}  e6 {[%clk 0:02:56]} 5. e3 {[%clk 0:02:57]}  Nbd7 {[%clk 0:02:55]} 6. c4 {[%clk 0:02:57]}  c6 {[%clk 0:02:54]} 7. Qb3 {[%clk 0:02:53]}  Qb6 {[%clk 0:02:52]} 8. c5 {[%clk 0:02:52]}  Qc7 {[%clk 0:02:51]} 9. Bf4 {[%clk 0:02:52]}  Qc8 {[%clk 0:02:52]} 10. Nh4 {[%clk 0:02:52]}  Bg6 {[%clk 0:02:51]} 11. Nxg6 {[%clk 0:02:50]}  hxg6 {[%clk 0:02:51]} 12. h3 {[%clk 0:02:34]}  Be7 {[%clk 0:02:39]} 13. Be2 {[%clk 0:02:32]}  Bd8 {[%clk 0:02:26]} 14. Qc3 {[%clk 0:02:07]}  Bc7 {[%clk 0:02:25]} 15. O-O {[%clk 0:02:06]}  Bxf4 {[%clk 0:02:21]} 16. exf4 {[%clk 0:02:07]}  Qc7 {[%clk 0:02:21]} 17. Qe3 {[%clk 0:02:04]}  Rh4 {[%clk 0:02:14]} 18. g3 {[%clk 0:02:00]}  Rxh3 {[%clk 0:02:12]} 19. Kg2 {[%clk 0:02:00]}  Rh6 {[%clk 0:02:07]} 20. Rh1 {[%clk 0:01:57]}  Ke7 {[%clk 0:02:00]} 21. b4 {[%clk 0:01:57]}  Rah8 {[%clk 0:01:54]} 22. a4 {[%clk 0:01:55]}  Rxh1 {[%clk 0:01:52]} 23. Rxh1 {[%clk 0:01:55]}  Rxh1 {[%clk 0:01:53]} 24. Kxh1 {[%clk 0:01:54]}  b6 {[%clk 0:01:54]} 25. Kg2 {[%clk 0:01:28]}  bxc5 {[%clk 0:01:44]} 26. dxc5 {[%clk 0:01:29]}  a5 {[%clk 0:01:37]} 27. Nb3 {[%clk 0:01:29]}  axb4 {[%clk 0:01:34]} 28. a5 {[%clk 0:01:29]}  Ne4 {[%clk 0:01:03]} 29. Qd4 {[%clk 0:01:21]}  Qa7 {[%clk 0:00:56]} 30. a6 {[%clk 0:01:05]}  Nexc5 {[%clk 0:00:20]} 31. Na5 {[%clk 0:00:28]}  Qb6 {[%clk 0:00:17]} 32. a7 {[%clk 0:00:14]}  Qxa5 {[%clk 0:00:15]} 0-1


[Site "https://www.chess.com"]

[Event "Titled Tuesday Blitz July 25 Early 2023"]
[White "ArtemDyachuk"]
[Black "Anton Guijarro, David"]
[BlackFideId "2285525"]
[WhiteElo "2616"]
[BlackElo "2964"]
[Result "0-1"]
[Round "5"]
[TimeControl "180+2"]
[Date "2023.07.25"]
[WhiteClock "0:00:15"]
[BlackClock "0:01:15"]
[Board "9"]

1. e4 {[%clk 0:02:36]}  c6 {[%clk 0:03:00]} 2. d4 {[%clk 0:02:36]}  a6 {[%clk 0:03:00]} 3. c4 {[%clk 0:02:33]}  d5 {[%clk 0:03:00]} 4. cxd5 {[%clk 0:02:26]}  cxd5 {[%clk 0:03:01]} 5. e5 {[%clk 0:02:27]}  Nc6 {[%clk 0:03:01]} 6. Nc3 {[%clk 0:02:26]}  Bf5 {[%clk 0:02:57]} 7. Nf3 {[%clk 0:02:25]}  e6 {[%clk 0:02:57]} 8. Be2 {[%clk 0:02:23]}  Nge7 {[%clk 0:02:53]} 9. O-O {[%clk 0:02:22]}  Nc8 {[%clk 0:02:53]} 10. Be3 {[%clk 0:02:21]}  Nb6 {[%clk 0:02:51]} 11. Nd2 {[%clk 0:02:20]}  Be7 {[%clk 0:02:45]} 12. g4 {[%clk 0:02:20]}  Bg6 {[%clk 0:02:45]} 13. f4 {[%clk 0:02:20]}  f6 {[%clk 0:02:43]} 14. exf6 {[%clk 0:02:09]}  Bxf6 {[%clk 0:02:42]} 15. Nf3 {[%clk 0:02:05]}  O-O {[%clk 0:02:37]} 16. Ne5 {[%clk 0:02:05]}  Bxe5 {[%clk 0:02:34]} 17. fxe5 {[%clk 0:02:05]}  Nc4 {[%clk 0:02:26]} 18. Bxc4 {[%clk 0:02:02]}  dxc4 {[%clk 0:02:26]} 19. Rxf8+ {[%clk 0:02:02]}  Qxf8 {[%clk 0:02:26]} 20. Qe2 {[%clk 0:02:01]}  Bd3 {[%clk 0:02:24]} 21. Qg2 {[%clk 0:02:00]}  Rd8 {[%clk 0:02:21]} 22. d5 {[%clk 0:01:26]}  exd5 {[%clk 0:01:53]} 23. Bg5 {[%clk 0:01:26]}  Qc5+ {[%clk 0:01:47]} 24. Kh1 {[%clk 0:00:58]}  d4 {[%clk 0:01:29]} 25. Bxd8 {[%clk 0:00:53]}  dxc3 {[%clk 0:01:29]} 26. Bb6 {[%clk 0:00:24]}  Qxe5 {[%clk 0:01:20]} 27. Bc7 {[%clk 0:00:14]}  Qxc7 {[%clk 0:01:17]} 28. Qd5+ {[%clk 0:00:15]}  Qf7 {[%clk 0:01:17]} 29. Qxf7+ {[%clk 0:00:14]}  Kxf7 {[%clk 0:01:15]} 30. bxc3 {[%clk 0:00:15]} 0-1


[Site "https://www.chess.com"]

[Event "Titled Tuesday Blitz July 25 Early 2023"]
[White "Shimanov, Aleksandr"]
[Black "Cordova, Emilio"]
[WhiteFideId "4198603"]
[BlackFideId "3801497"]
[WhiteElo "3012"]
[BlackElo "2830"]
[Result "0-1"]
[Round "5"]
[TimeControl "180+2"]
[Date "2023.07.25"]
[WhiteClock "0:00:00"]
[BlackClock "0:00:47"]
[Board "11"]

1. e4 {[%clk 0:03:00]}  c5 {[%clk 0:02:59]} 2. d4 {[%clk 0:03:00]}  cxd4 {[%clk 0:02:59]} 3. Qxd4 {[%clk 0:03:01]}  Nc6 {[%clk 0:02:58]} 4. Qd3 {[%clk 0:03:02]}  b6 {[%clk 0:02:59]} 5. Nc3 {[%clk 0:02:58]}  Bb7 {[%clk 0:02:59]} 6. Nf3 {[%clk 0:02:49]}  d6 {[%clk 0:02:53]} 7. Be2 {[%clk 0:02:49]}  Nf6 {[%clk 0:02:53]} 8. O-O {[%clk 0:02:46]}  Nd7 {[%clk 0:02:44]} 9. Bg5 {[%clk 0:02:38]}  h6 {[%clk 0:02:43]} 10. Be3 {[%clk 0:02:31]}  e6 {[%clk 0:02:30]} 11. Rad1 {[%clk 0:02:25]}  a6 {[%clk 0:02:22]} 12. Bf4 {[%clk 0:02:23]}  Nde5 {[%clk 0:02:19]} 13. Qe3 {[%clk 0:02:07]}  Qc7 {[%clk 0:02:16]} 14. Nd2 {[%clk 0:01:36]}  Be7 {[%clk 0:02:09]} 15. Kh1 {[%clk 0:01:34]}  g5 {[%clk 0:02:04]} 16. Bg3 {[%clk 0:01:34]}  h5 {[%clk 0:02:04]} 17. h3 {[%clk 0:01:18]}  h4 {[%clk 0:02:03]} 18. Bh2 {[%clk 0:01:17]}  b5 {[%clk 0:01:59]} 19. a4 {[%clk 0:00:55]}  b4 {[%clk 0:01:41]} 20. Na2 {[%clk 0:00:55]}  Rg8 {[%clk 0:01:41]} 21. c3 {[%clk 0:00:54]}  bxc3 {[%clk 0:01:39]} 22. Nxc3 {[%clk 0:00:55]}  g4 {[%clk 0:01:38]} 23. hxg4 {[%clk 0:00:55]}  Nxg4 {[%clk 0:01:39]} 24. Bxg4 {[%clk 0:00:56]}  Rxg4 {[%clk 0:01:38]} 25. Nc4 {[%clk 0:00:55]}  Ne5 {[%clk 0:01:32]} 26. Nxe5 {[%clk 0:00:55]}  dxe5 {[%clk 0:01:32]} 27. Qh6 {[%clk 0:00:49]}  Rg8 {[%clk 0:01:25]} 28. Qh7 {[%clk 0:00:49]}  Kf8 {[%clk 0:01:17]} 29. Rd3 {[%clk 0:00:45]}  Bf6 {[%clk 0:01:03]} 30. f4 {[%clk 0:00:38]}  Rh8 {[%clk 0:01:00]} 31. Qxh8+ {[%clk 0:00:09]}  Bxh8 {[%clk 0:00:59]} 32. fxe5 {[%clk 0:00:09]}  Rd8 {[%clk 0:00:58]} 33. Rdf3 {[%clk 0:00:09]}  Rd7 {[%clk 0:00:58]} 34. Bf4 {[%clk 0:00:09]}  Bxe5 {[%clk 0:00:57]} 35. Bh6+ {[%clk 0:00:09]}  Ke8 {[%clk 0:00:56]} 36. Bg5 {[%clk 0:00:08]}  Bg3 {[%clk 0:00:55]} 37. Rf6 {[%clk 0:00:08]}  Qc4 {[%clk 0:00:53]} 38. Rg1 {[%clk 0:00:00]}  Qc5 {[%clk 0:00:47]} 0-1


[Site "https://www.chess.com"]

[Event "Titled Tuesday Blitz July 25 Early 2023"]
[White "Vakhlamov, Igor L."]
[Black "Martinez Alcantara, Jose Eduardo"]
[WhiteFideId "24126748"]
[BlackFideId "3805662"]
[WhiteElo "2773"]
[BlackElo "2984"]
[Result "0-1"]
[Round "5"]
[TimeControl "180+2"]
[Date "2023.07.25"]
[WhiteClock "0:00:00"]
[BlackClock "0:01:22"]
[Board "13"]

1. e4 {[%clk 0:03:00]}  c5 {[%clk 0:02:58]} 2. Nf3 {[%clk 0:03:00]}  d6 {[%clk 0:02:59]} 3. Nc3 {[%clk 0:03:00]}  a6 {[%clk 0:02:59]} 4. d4 {[%clk 0:03:00]}  cxd4 {[%clk 0:03:00]} 5. Qxd4 {[%clk 0:03:00]}  Nc6 {[%clk 0:03:00]} 6. Qd3 {[%clk 0:03:00]}  g6 {[%clk 0:03:00]} 7. Be2 {[%clk 0:02:58]}  Bg7 {[%clk 0:03:00]} 8. O-O {[%clk 0:02:59]}  Nf6 {[%clk 0:03:00]} 9. Nd5 {[%clk 0:02:59]}  O-O {[%clk 0:03:00]} 10. Bg5 {[%clk 0:02:58]}  Nd7 {[%clk 0:02:57]} 11. c3 {[%clk 0:02:56]}  h6 {[%clk 0:02:53]} 12. Bh4 {[%clk 0:02:55]}  g5 {[%clk 0:02:38]} 13. Bg3 {[%clk 0:02:54]}  Nc5 {[%clk 0:02:39]} 14. Qe3 {[%clk 0:02:48]}  e6 {[%clk 0:02:33]} 15. Nb4 {[%clk 0:02:42]}  f5 {[%clk 0:01:57]} 16. exf5 {[%clk 0:02:38]}  exf5 {[%clk 0:01:58]} 17. Bc4+ {[%clk 0:02:14]}  Kh8 {[%clk 0:01:53]} 18. Nxg5 {[%clk 0:01:19]}  hxg5 {[%clk 0:01:50]} 19. Bxd6 {[%clk 0:00:11]}  Qxd6 {[%clk 0:01:48]} 20. Rad1 {[%clk 0:00:11]}  f4 {[%clk 0:01:41]} 21. Qe2 {[%clk 0:00:07]}  f3 {[%clk 0:01:27]} 22. gxf3 {[%clk 0:00:06]}  Qf4 {[%clk 0:01:24]} 23. Rd5 {[%clk 0:00:04]}  Be5 {[%clk 0:01:21]} 24. Rxe5 {[%clk 0:00:02]}  Nxe5 {[%clk 0:01:22]} 25. Nd5 {[%clk 0:00:00]}  Nxf3+ {[%clk 0:01:22]} 0-1


[Site "https://www.chess.com"]

[Event "Titled Tuesday Blitz July 25 Early 2023"]
[White "Suyarov, Mukhammadzokhid"]
[Black "Grandelius, Nils"]
[WhiteFideId "14210495"]
[BlackFideId "1710400"]
[WhiteElo "2738"]
[BlackElo "2874"]
[Result "0-1"]
[Round "5"]
[TimeControl "180+2"]
[Date "2023.07.25"]
[WhiteClock "0:00:11"]
[BlackClock "0:00:11"]
[Board "17"]

1. d4 {[%clk 0:03:00]}  Nf6 {[%clk 0:02:59]} 2. Nc3 {[%clk 0:02:29]}  d5 {[%clk 0:02:59]} 3. Bf4 {[%clk 0:01:55]}  Bf5 {[%clk 0:02:59]} 4. f3 {[%clk 0:01:55]}  e6 {[%clk 0:02:59]} 5. g4 {[%clk 0:01:54]}  Bg6 {[%clk 0:02:59]} 6. h4 {[%clk 0:01:53]}  h5 {[%clk 0:03:00]} 7. g5 {[%clk 0:01:53]}  Nfd7 {[%clk 0:03:00]} 8. e4 {[%clk 0:01:54]}  Bb4 {[%clk 0:02:37]} 9. Ne2 {[%clk 0:01:53]}  dxe4 {[%clk 0:02:35]} 10. a3 {[%clk 0:01:52]}  Bxc3+ {[%clk 0:01:55]} 11. Nxc3 {[%clk 0:01:51]}  Nc6 {[%clk 0:01:55]} 12. Nxe4 {[%clk 0:01:25]}  O-O {[%clk 0:01:50]} 13. Be3 {[%clk 0:01:21]}  Nb6 {[%clk 0:01:39]} 14. c4 {[%clk 0:01:13]}  Re8 {[%clk 0:01:26]} 15. Bg2 {[%clk 0:01:08]}  Nxc4 {[%clk 0:01:24]} 16. Bf2 {[%clk 0:01:07]}  Ne7 {[%clk 0:01:06]} 17. O-O {[%clk 0:01:02]}  Nd5 {[%clk 0:01:06]} 18. Re1 {[%clk 0:00:58]}  a5 {[%clk 0:00:58]} 19. Bf1 {[%clk 0:00:56]}  Nd6 {[%clk 0:00:58]} 20. Rc1 {[%clk 0:00:55]}  a4 {[%clk 0:00:55]} 21. Bg3 {[%clk 0:00:55]}  Nf5 {[%clk 0:00:55]} 22. Bf2 {[%clk 0:00:53]}  Qe7 {[%clk 0:00:53]} 23. Bh3 {[%clk 0:00:47]}  Red8 {[%clk 0:00:52]} 24. Qd2 {[%clk 0:00:45]}  b6 {[%clk 0:00:47]} 25. Rc6 {[%clk 0:00:44]}  Qd7 {[%clk 0:00:44]} 26. Rec1 {[%clk 0:00:45]}  Ra7 {[%clk 0:00:42]} 27. R6c2 {[%clk 0:00:38]}  Nde7 {[%clk 0:00:40]} 28. Rd1 {[%clk 0:00:31]}  Nc6 {[%clk 0:00:34]} 29. Qc3 {[%clk 0:00:23]}  Ncxd4 {[%clk 0:00:21]} 30. Bxf5 {[%clk 0:00:20]}  Nxf3+ {[%clk 0:00:21]} 31. Kg2 {[%clk 0:00:18]}  Qxd1 {[%clk 0:00:19]} 32. Bxg6 {[%clk 0:00:19]}  fxg6 {[%clk 0:00:18]} 33. Rc1 {[%clk 0:00:16]}  Qe2 {[%clk 0:00:17]} 34. Qxf3 {[%clk 0:00:16]}  Qxb2 {[%clk 0:00:15]} 35. Rc6 {[%clk 0:00:14]}  Qe5 {[%clk 0:00:14]} 36. Bg3 {[%clk 0:00:13]}  Qf5 {[%clk 0:00:15]} 37. Qe3 {[%clk 0:00:13]}  Qd5 {[%clk 0:00:14]} 38. Rc2 {[%clk 0:00:11]}  Rf8 {[%clk 0:00:13]} 39. Rd2 {[%clk 0:00:11]}  Qc6 {[%clk 0:00:13]} 40. Qd4 {[%clk 0:00:11]}  Ra5 {[%clk 0:00:13]} 41. Re2 {[%clk 0:00:10]}  Rd5 {[%clk 0:00:12]} 42. Qb4 {[%clk 0:00:10]}  Rd3 {[%clk 0:00:10]} 43. Qe7 {[%clk 0:00:10]}  Qd5 {[%clk 0:00:10]} 44. Qxc7 {[%clk 0:00:09]}  Rff3 {[%clk 0:00:09]} 45. Qe5 {[%clk 0:00:05]}  Rxg3+ {[%clk 0:00:06]} 46. Qxg3 {[%clk 0:00:03]}  Rxg3+ {[%clk 0:00:07]} 47. Kxg3 {[%clk 0:00:04]}  Qd3+ {[%clk 0:00:07]} 48. Kf2 {[%clk 0:00:05]}  Qxa3 {[%clk 0:00:07]} 49. Rd2 {[%clk 0:00:06]}  Qb4 {[%clk 0:00:07]} 50. Rd8+ {[%clk 0:00:06]}  Kf7 {[%clk 0:00:07]} 51. Ke3 {[%clk 0:00:06]}  a3 {[%clk 0:00:06]} 52. Rd7+ {[%clk 0:00:07]}  Ke8 {[%clk 0:00:07]} 53. Rxg7 {[%clk 0:00:07]}  a2 {[%clk 0:00:06]} 54. Ra7 {[%clk 0:00:08]}  Qb3+ {[%clk 0:00:05]} 55. Kf4 {[%clk 0:00:08]}  Qb2 {[%clk 0:00:05]} 56. Nd6+ {[%clk 0:00:05]}  Kd8 {[%clk 0:00:05]} 57. Rb7 {[%clk 0:00:03]}  Qd4+ {[%clk 0:00:05]} 58. Ne4 {[%clk 0:00:03]}  a1=Q {[%clk 0:00:05]} 59. Ra7 {[%clk 0:00:04]}  Qxa7 {[%clk 0:00:05]} 60. Kf3 {[%clk 0:00:03]}  Qf7+ {[%clk 0:00:05]} 61. Nf6 {[%clk 0:00:03]}  Qfxf6+ {[%clk 0:00:05]} 62. gxf6 {[%clk 0:00:04]}  Qxf6+ {[%clk 0:00:06]} 63. Kg3 {[%clk 0:00:05]}  e5 {[%clk 0:00:07]} 64. Kg2 {[%clk 0:00:05]}  b5 {[%clk 0:00:07]} 65. Kg3 {[%clk 0:00:05]}  b4 {[%clk 0:00:08]} 66. Kg2 {[%clk 0:00:06]}  b3 {[%clk 0:00:09]} 67. Kg3 {[%clk 0:00:07]}  b2 {[%clk 0:00:09]} 68. Kg2 {[%clk 0:00:08]}  b1=Q {[%clk 0:00:10]} 69. Kg3 {[%clk 0:00:09]}  Qd3+ {[%clk 0:00:10]} 70. Kg2 {[%clk 0:00:09]}  Qff3+ {[%clk 0:00:10]} 71. Kg1 {[%clk 0:00:10]}  Qdf1+ {[%clk 0:00:10]} 72. Kh2 {[%clk 0:00:11]}  Q3h3# {[%clk 0:00:11]} 0-1


[Site "https://www.chess.com"]